fUSD/lending_fUSD_20250730
["ID","MTS","AMOUNT","RATE_DAILY","PERIOD"]
[376038998,1753833631345,150.0,0.00022709,120]
[376039004,1753833774991,500.0,0.00015164,2]
[376039007,1753833809442,507.0,0.0001497,2]
[376039008,1753833811839,316.48031242,0.00015164,2]
[376039009,1753833811863,183.51968758,0.00015164,2]
[376039012,1753833869104,507.0,0.00015335,2]
[376039013,1753833870796,150.0,0.00026373,120]
[376039015,1753833967762,171.75,0.00013699,2]
[376039018,1753834050647,150.0,0.00022368,120]
[376039024,1753834231648,-299.76,0.00015707,2]
[376039025,1753834231659,-507.0,0.00015731,2]
[376039026,1753834231669,-208.9239043,0.00015781,2]
[376039027,1753834231679,-893.58518796,0.0001588,2]
[376039028,1753834231737,-306.41481204,0.0001588,2]
[376039029,1753834231747,-300.0,0.0001588,2]
[376039030,1753834231757,-174.32,0.00015881,2]
[376039031,1753834231767,-195.28200868,0.00015881,2]
[376039032,1753834231831,-14046.85799132,0.00015881,2]
[376039033,1753834231841,-538.70285964,0.00015933,2]
[376039035,1753834231852,-461.29714036,0.00015933,2]
[376039041,1753834232113,-200.0,0.00015988,2]
[376039043,1753834232124,-163.18808434,0.00016,2]
[376039045,1753834232135,-2622.13,0.00016043,2]
[376039047,1753834232144,-9950.47,0.00016221,2]
[376039049,1753834232157,-4181.034672,0.00016351,2]
[376039051,1753834232167,-231.28369723,0.00016351,2]
[376039053,1753834232176,-2800.0,0.000165,2]
[376039055,1753834232186,-2772.82804302,0.00016504,2]
[376039057,1753834232198,-11389.9031,0.00016506,2]
[376039058,1753834232207,-280.52,0.00016594,2]
[376039059,1753834232217,-151.0,0.00016599,2]
[376039060,1753834232227,-400.0,0.00016603,2]
[376039061,1753834232236,-400.0,0.00016603,2]
[376039062,1753834232246,-400.0,0.00016603,2]
[376039063,1753834232255,-400.0,0.00016603,2]
[376039064,1753834232265,-400.0,0.00016604,2]
[376039065,1753834232275,-400.0,0.00016604,2]
[376039066,1753834232284,-400.0,0.00016604,2]
[376039067,1753834232294,-400.0,0.00016604,2]
[376039068,1753834232303,-472.89171466,0.00016604,2]
[376039069,1753834232312,-400.0,0.00016604,2]
[376039070,1753834232322,-1145.627229,0.00016604,2]
[376039071,1753834232331,-886.716118,0.00016604,2]
[376039072,1753834232340,-1138.421571,0.00016604,2]
[376039073,1753834232350,-400.0,0.00016604,2]
[376039074,1753834232359,-400.0,0.00016604,2]
[376039075,1753834232369,-400.0,0.00016604,2]
[376039076,1753834232379,-400.0,0.00016604,2]
[376039077,1753834232388,-400.0,0.00016604,2]
[376039078,1753834232398,-162.453292,0.00016604,2]
[376039079,1753834232407,-290.26864876,0.00016604,2]
[376039080,1753834232419,-109.73135124,0.00016604,2]
[376039081,1753834232429,-400.0,0.00016604,2]
[376039082,1753834232439,-400.0,0.00016604,2]
[376039083,1753834232448,-400.0,0.00016604,2]
[376039084,1753834232457,-400.0,0.00016604,2]
[376039085,1753834232466,-400.0,0.00016604,2]
[376039086,1753834232476,-400.0,0.00016604,2]
[376039087,1753834232485,-400.0,0.00016604,2]
[376039088,1753834232495,-400.0,0.00016604,2]
[376039089,1753834232506,-400.0,0.00016604,2]
[376039090,1753834232516,-401.34,0.00016604,2]
[376039091,1753834232526,-400.0,0.00016604,2]
[376039092,1753834232541,-404.89,0.00016604,2]
[376039093,1753834232550,-400.0,0.00016604,2]
[376039094,1753834232560,-400.0,0.00016604,2]
[376039095,1753834232570,-400.0,0.00016604,2]
[376039096,1753834232580,-400.0,0.00016604,2]
[376039097,1753834232590,-400.0,0.00016604,2]
[376039098,1753834232599,-451.57,0.00016604,2]
[376039099,1753834232609,-421.0,0.00016604,2]
[376039100,1753834232618,-400.0,0.00016604,2]
[376039101,1753834232628,-400.0,0.00016604,2]
[376039102,1753834232637,-400.0,0.00016604,2]
[376039103,1753834232647,-400.0,0.00016604,2]
[376039104,1753834232656,-400.0,0.00016604,2]
[376039105,1753834232666,-400.0,0.00016604,2]
[376039106,1753834232676,-400.0,0.00016604,2]
[376039107,1753834232686,-400.0,0.00016604,2]
[376039108,1753834232695,-405.97,0.00016604,2]
[376039109,1753834232705,-616.37,0.00016604,2]
[376039110,1753834232714,-400.0,0.00016604,2]
[376039111,1753834232725,-400.0,0.00016604,2]
[376039112,1753834232734,-400.0,0.00016604,2]
[376039113,1753834232743,-400.0,0.00016604,2]
[376039114,1753834232752,-703.01,0.00016604,2]
[376039115,1753834232762,-454.44,0.00016604,2]
[376039116,1753834232771,-449.23,0.00016604,2]
[376039117,1753834232780,-365.05,0.00016604,2]
[376039118,1753834232790,-172.47397266,0.00016604,2]
[376039119,1753834232803,-421.37602734,0.00016604,2]
[376039120,1753834232813,-157.69539389,0.00016604,2]
[376039121,1753834232823,-400.0,0.00016604,2]
[376039122,1753834232832,-400.0,0.00016604,2]
[376039123,1753834232842,-400.0,0.00016604,2]
[376039124,1753834232852,-512.85,0.00016604,2]
[376039125,1753834232862,-400.0,0.00016604,2]
[376039126,1753834232871,-493.32,0.00016604,2]
[376039127,1753834232881,-494.6,0.00016604,2]
[376039128,1753834232891,-400.0,0.00016604,2]
[376039129,1753834232900,-400.0,0.00016604,2]
[376039130,1753834232909,-400.0,0.00016604,2]
[376039131,1753834232919,-400.0,0.00016604,2]
[376039132,1753834232928,-400.0,0.00016604,2]
[376039133,1753834232938,-400.0,0.00016604,2]
[376039134,1753834232948,-400.0,0.00016604,2]
[376039135,1753834232958,-400.0,0.00016604,2]
[376039136,1753834232967,-507.46,0.00016604,2]
[376039137,1753834232977,-400.0,0.00016604,2]
[376039138,1753834232987,-400.0,0.00016604,2]
[376039139,1753834232996,-400.0,0.00016604,2]
[376039140,1753834233006,-400.0,0.00016604,2]
[376039141,1753834233016,-400.0,0.00016604,2]
[376039142,1753834233026,-456.39,0.00016604,2]
[376039143,1753834233035,-400.0,0.00016604,2]
[376039144,1753834233045,-400.0,0.00016604,2]
[376039145,1753834233055,-400.0,0.00016604,2]
[376039146,1753834233065,-400.0,0.00016604,2]
[376039147,1753834233074,-400.0,0.00016604,2]
[376039148,1753834233084,-400.0,0.00016604,2]
[376039149,1753834233094,-400.0,0.00016604,2]
[376039150,1753834233104,-514.45,0.00016604,2]
[376039151,1753834233114,-359.26951204,0.00016604,2]
[376039152,1753834233128,-64.03048796,0.00016604,2]
[376039153,1753834233138,-400.0,0.00016604,2]
[376039154,1753834233147,-400.0,0.00016604,2]
[376039155,1753834233158,-400.0,0.00016604,2]
[376039156,1753834233169,-400.0,0.00016604,2]
[376039157,1753834233179,-400.0,0.00016604,2]
[376039158,1753834233189,-400.0,0.00016604,2]
[376039159,1753834233200,-400.0,0.00016604,2]
[376039160,1753834233210,-400.0,0.00016604,2]
[376039161,1753834233220,-400.0,0.00016604,2]
[376039162,1753834233230,-400.0,0.00016604,2]
[376039163,1753834233241,-631.77,0.00016604,2]
[376039164,1753834233250,-400.0,0.00016604,2]
[376039165,1753834233260,-400.0,0.00016604,2]
[376039166,1753834233270,-400.0,0.00016604,2]
[376039167,1753834233281,-400.0,0.00016604,2]
[376039168,1753834233291,-400.0,0.00016604,2]
[376039169,1753834233301,-400.0,0.00016604,2]
[376039170,1753834233310,-400.0,0.00016604,2]
[376039171,1753834233320,-206.08108703,0.00016604,2]
[376039172,1753834233330,-400.0,0.00016604,2]
[376039173,1753834233339,-400.0,0.00016604,2]
[376039174,1753834233349,-275.05198683,0.00016604,2]
[376039175,1753834233359,-456.26,0.00016604,2]
[376039176,1753834233368,-400.0,0.00016604,2]
[376039177,1753834233378,-400.0,0.00016604,2]
[376039178,1753834233396,-400.0,0.00016604,2]
[376039179,1753834233416,-400.0,0.00016604,2]
[376039180,1753834233432,-400.0,0.00016604,2]
[376039181,1753834233442,-311.07555724,0.00016604,2]
[376039182,1753834233452,-400.0,0.00016604,2]
[376039183,1753834233462,-27.00838147,0.00016604,2]
[376039184,1753834233475,-550.05161853,0.00016604,2]
[376039185,1753834233484,-467.87,0.00016604,2]
[376039186,1753834233494,-695.61,0.00016604,2]
[376039187,1753834233504,-400.0,0.00016604,2]
[376039188,1753834233514,-400.0,0.00016604,2]
[376039189,1753834233523,-400.0,0.00016604,2]
[376039190,1753834233533,-532.98,0.00016604,2]
[376039191,1753834233542,-499.09,0.00016604,2]
[376039192,1753834233552,-400.0,0.00016604,2]
[376039193,1753834233561,-400.0,0.00016604,2]
[376039194,1753834233571,-744.7,0.00016604,2]
[376039195,1753834233581,-400.0,0.00016604,2]
[376039196,1753834233590,-400.0,0.00016604,2]
[376039197,1753834233600,-400.0,0.00016604,2]
[376039198,1753834233609,-400.0,0.00016604,2]
[376039199,1753834233620,-400.0,0.00016604,2]
[376039200,1753834233630,-727.12,0.00016604,2]
[376039201,1753834233639,-400.0,0.00016604,2]
[376039202,1753834233648,-400.0,0.00016604,2]
[376039203,1753834233658,-400.0,0.00016604,2]
[376039204,1753834233667,-400.0,0.00016604,2]
[376039205,1753834233677,-400.0,0.00016604,2]
[376039206,1753834233686,-400.0,0.00016604,2]
[376039207,1753834233696,-400.0,0.00016604,2]
[376039208,1753834233705,-486.09,0.00016604,2]
[376039209,1753834233715,-516.59,0.00016604,2]
[376039210,1753834233724,-400.0,0.00016604,2]
[376039211,1753834233733,-400.0,0.00016604,2]
[376039212,1753834233743,-668.07,0.00016604,2]
[376039213,1753834233752,-272.91,0.00016604,2]
[376039214,1753834233761,-400.0,0.00016604,2]
[376039215,1753834233770,-400.0,0.00016604,2]
[376039216,1753834233780,-547.96,0.00016604,2]
[376039217,1753834233789,-400.0,0.00016604,2]
[376039218,1753834233799,-400.0,0.00016604,2]
[376039219,1753834233808,-400.0,0.00016604,2]
[376039220,1753834233818,-400.0,0.00016604,2]
[376039221,1753834233827,-400.0,0.00016604,2]
[376039222,1753834233837,-400.0,0.00016604,2]
[376039223,1753834233846,-400.0,0.00016604,2]
[376039224,1753834233855,-400.0,0.00016604,2]
[376039225,1753834233865,-527.81,0.00016604,2]
[376039226,1753834233875,-400.0,0.00016604,2]
[376039227,1753834233886,-400.0,0.00016604,2]
[376039228,1753834233896,-400.0,0.00016604,2]
[376039229,1753834233907,-460.26,0.00016604,2]
[376039230,1753834233917,-400.0,0.00016604,2]
[376039231,1753834233927,-400.0,0.00016604,2]
[376039232,1753834233936,-400.22,0.00016604,2]
[376039233,1753834233946,-400.0,0.00016604,2]
[376039234,1753834233956,-516.05,0.00016604,2]
[376039235,1753834233965,-400.0,0.00016604,2]
[376039236,1753834233975,-400.0,0.00016604,2]
[376039237,1753834233985,-400.0,0.00016604,2]
[376039238,1753834233995,-550.6,0.00016604,2]
[376039239,1753834234006,-400.0,0.00016604,2]
[376039240,1753834234016,-400.0,0.00016604,2]
[376039241,1753834234026,-400.0,0.00016604,2]
[376039242,1753834234037,-400.0,0.00016604,2]
[376039243,1753834234047,-462.56,0.00016604,2]
[376039244,1753834234057,-400.0,0.00016604,2]
[376039245,1753834234067,-500.0,0.00016604,2]
[376039246,1753834234076,-400.0,0.00016604,2]
[376039247,1753834234086,-400.0,0.00016604,2]
[376039248,1753834234096,-400.0,0.00016604,2]
[376039249,1753834234107,-400.0,0.00016604,2]
[376039250,1753834234117,-427.85,0.00016604,2]
[376039251,1753834234127,-400.0,0.00016604,2]
[376039252,1753834234137,-400.0,0.00016604,2]
[376039253,1753834234147,-400.0,0.00016604,2]
[376039254,1753834234156,-400.0,0.00016604,2]
[376039255,1753834234167,-400.0,0.00016604,2]
[376039256,1753834234178,-400.0,0.00016604,2]
[376039257,1753834234190,-400.0,0.00016604,2]
[376039258,1753834234200,-430.12,0.00016604,2]
[376039259,1753834234210,-569.28,0.00016604,2]
[376039260,1753834234220,-400.0,0.00016604,2]
[376039261,1753834234230,-400.0,0.00016604,2]
[376039262,1753834234240,-400.0,0.00016604,2]
[376039263,1753834234249,-400.0,0.00016604,2]
[376039264,1753834234259,-400.0,0.00016604,2]
[376039265,1753834234270,-417.19,0.00016604,2]
[376039266,1753834234280,-400.0,0.00016604,2]
[376039267,1753834234289,-263.59459055,0.00016604,2]
[376039268,1753834234299,-400.0,0.00016604,2]
[376039269,1753834234309,-400.0,0.00016604,2]
[376039270,1753834234319,-400.0,0.00016604,2]
[376039271,1753834234328,-400.0,0.00016604,2]
[376039272,1753834234337,-400.0,0.00016604,2]
[376039273,1753834234347,-400.0,0.00016604,2]
[376039274,1753834234356,-400.0,0.00016604,2]
[376039275,1753834234368,-400.0,0.00016604,2]
[376039276,1753834234377,-400.0,0.00016604,2]
[376039277,1753834234387,-400.0,0.00016604,2]
[376039278,1753834234396,-400.0,0.00016604,2]
[376039279,1753834234407,-400.0,0.00016604,2]
[376039280,1753834234416,-400.0,0.00016604,2]
[376039281,1753834234426,-400.0,0.00016604,2]
[376039282,1753834234435,-400.0,0.00016604,2]
[376039283,1753834234445,-433.85,0.00016604,2]
[376039284,1753834234454,-178.08,0.00016604,2]
[376039285,1753834234464,-400.0,0.00016604,2]
[376039286,1753834234473,-671.29,0.00016604,2]
[376039287,1753834234483,-400.0,0.00016604,2]
[376039288,1753834234493,-400.0,0.00016604,2]
[376039289,1753834234502,-400.0,0.00016604,2]
[376039290,1753834234512,-400.0,0.00016604,2]
[376039291,1753834234521,-450.14,0.00016604,2]
[376039292,1753834234530,-400.0,0.00016604,2]
[376039293,1753834234540,-400.0,0.00016604,2]
[376039294,1753834234550,-400.0,0.00016604,2]
[376039295,1753834234559,-400.0,0.00016604,2]
[376039296,1753834234569,-467.29,0.00016604,2]
[376039297,1753834234578,-577.34,0.00016604,2]
[376039298,1753834234587,-672.66,0.00016604,2]
[376039299,1753834234597,-400.0,0.00016604,2]
[376039300,1753834234606,-400.0,0.00016604,2]
[376039301,1753834234616,-400.0,0.00016604,2]
[376039302,1753834234625,-400.0,0.00016604,2]
[376039303,1753834234635,-400.0,0.00016604,2]
[376039304,1753834234645,-400.0,0.00016604,2]
[376039305,1753834234654,-400.0,0.00016604,2]
[376039306,1753834234665,-400.0,0.00016604,2]
[376039307,1753834234676,-404.24,0.00016604,2]
[376039308,1753834234685,-400.0,0.00016604,2]
[376039309,1753834234695,-400.0,0.00016604,2]
[376039310,1753834234704,-400.0,0.00016604,2]
[376039311,1753834234716,-400.0,0.00016604,2]
[376039312,1753834234726,-400.0,0.00016604,2]
[376039313,1753834234735,-400.0,0.00016604,2]
[376039314,1753834234745,-400.0,0.00016604,2]
[376039315,1753834234755,-400.0,0.00016604,2]
[376039316,1753834234764,-812.4,0.00016604,2]
[376039317,1753834234774,-574.09,0.00016604,2]
[376039318,1753834234784,-429.03,0.00016604,2]
[376039319,1753834234793,-400.0,0.00016604,2]
[376039320,1753834234803,-400.0,0.00016604,2]
[376039321,1753834234812,-400.0,0.00016604,2]
[376039322,1753834234822,-512.64,0.00016604,2]
[376039323,1753834234831,-400.0,0.00016604,2]
[376039324,1753834234840,-673.2,0.00016604,2]
[376039325,1753834234850,-400.0,0.00016604,2]
[376039326,1753834234859,-400.0,0.00016604,2]
[376039327,1753834234869,-400.0,0.00016604,2]
[376039328,1753834234880,-400.0,0.00016604,2]
[376039329,1753834234890,-393.803,0.00016604,2]
[376039330,1753834234900,-313.45548709,0.00016604,2]
[376039331,1753834234910,-400.0,0.00016604,2]
[376039332,1753834234925,-444.48,0.00016604,2]
[376039333,1753834234935,-426.29,0.00016604,2]
[376039334,1753834234945,-601.13,0.00016604,2]
[376039335,1753834234955,-500.0,0.00016604,2]
[376039336,1753834234965,-400.0,0.00016604,2]
[376039337,1753834234975,-400.0,0.00016604,2]
[376039338,1753834234985,-400.0,0.00016604,2]
[376039339,1753834234995,-355.85627708,0.00016604,2]
[376039340,1753834235005,-261.78,0.00016604,2]
[376039341,1753834235015,-1273.73,0.00016604,2]
[376039342,1753834235025,-558.44,0.00016604,2]
[376039343,1753834235035,-156.89188859,0.00016604,2]
[376039344,1753834235045,-400.0,0.00016604,2]
[376039345,1753834235055,-400.0,0.00016604,2]
[376039346,1753834235067,-400.0,0.00016604,2]
[376039347,1753834235077,-400.0,0.00016604,2]
[376039348,1753834235087,-400.0,0.00016604,2]
[376039349,1753834235097,-647.08,0.00016604,2]
[376039350,1753834235106,-400.0,0.00016604,2]
[376039351,1753834235115,-400.0,0.00016604,2]
[376039352,1753834235125,-529.52,0.00016604,2]
[376039353,1753834235134,-400.0,0.00016604,2]
[376039354,1753834235144,-400.0,0.00016604,2]
[376039355,1753834235153,-400.0,0.00016604,2]
[376039356,1753834235163,-400.0,0.00016604,2]
[376039357,1753834235175,-495.47,0.00016604,2]
[376039358,1753834235186,-400.0,0.00016604,2]
[376039359,1753834235203,-402.18,0.00016604,2]
[376039360,1753834235218,-400.0,0.00016604,2]
[376039361,1753834235228,-400.0,0.00016604,2]
[376039362,1753834235237,-400.0,0.00016604,2]
[376039363,1753834235247,-400.0,0.00016604,2]
[376039364,1753834235257,-698.65,0.00016604,2]
[376039365,1753834235267,-489.36,0.00016604,2]
[376039366,1753834235276,-458.67,0.00016604,2]
[376039367,1753834235286,-400.0,0.00016604,2]
[376039368,1753834235296,-430.68,0.00016604,2]
[376039369,1753834235305,-400.0,0.00016604,2]
[376039370,1753834235314,-664.94,0.00016604,2]
[376039371,1753834235324,-400.0,0.00016604,2]
[376039372,1753834235334,-400.0,0.00016604,2]
[376039373,1753834235343,-460.0,0.00016604,2]
[376039374,1753834235353,-400.0,0.00016604,2]
[376039375,1753834235362,-460.0,0.00016604,2]
[376039376,1753834235371,-400.0,0.00016604,2]
[376039377,1753834235380,-1320.78,0.00016604,2]
[376039378,1753834235390,-674.32,0.00016604,2]
[376039379,1753834235400,-400.0,0.00016604,2]
[376039380,1753834235409,-400.0,0.00016604,2]
[376039381,1753834235419,-400.0,0.00016604,2]
[376039382,1753834235431,-400.0,0.00016604,2]
[376039383,1753834235440,-400.0,0.00016604,2]
[376039384,1753834235449,-400.0,0.00016604,2]
[376039385,1753834235459,-400.0,0.00016604,2]
[376039386,1753834235468,-400.0,0.00016604,2]
[376039387,1753834235477,-400.0,0.00016604,2]
[376039388,1753834235487,-446.78,0.00016604,2]
[376039389,1753834235497,-459.06,0.00016604,2]
[376039390,1753834235506,-554.19,0.00016604,2]
[376039391,1753834235515,-682.26,0.00016604,2]
[376039392,1753834235525,-645.62,0.00016604,2]
[376039393,1753834235534,-400.0,0.00016604,2]
[376039394,1753834235544,-400.0,0.00016604,2]
[376039395,1753834235553,-400.0,0.00016604,2]
[376039396,1753834235562,-400.0,0.00016604,2]
[376039397,1753834235572,-400.0,0.00016604,2]
[376039398,1753834235581,-400.0,0.00016604,2]
[376039399,1753834235591,-400.0,0.00016604,2]
[376039400,1753834235600,-400.0,0.00016604,2]
[376039401,1753834235609,-451.05,0.00016604,2]
[376039402,1753834235619,-400.0,0.00016604,2]
[376039403,1753834235628,-514.94,0.00016604,2]
[376039404,1753834235638,-2655.0,0.00016604,2]
[376039405,1753834235647,-458.59,0.00016604,2]
[376039406,1753834235656,-513.25,0.00016604,2]
[376039407,1753834235665,-400.0,0.00016604,2]
[376039408,1753834235677,-1080.69,0.00016604,2]
[376039409,1753834235686,-400.0,0.00016604,2]
[376039410,1753834235696,-500.0,0.00016604,2]
[376039411,1753834235705,-400.0,0.00016604,2]
[376039412,1753834235715,-400.0,0.00016604,2]
[376039413,1753834235724,-400.0,0.00016604,2]
[376039414,1753834235733,-460.0,0.00016604,2]
[376039415,1753834235743,-1523.66,0.00016604,2]
[376039416,1753834235752,-1308.0,0.00016604,2]
[376039417,1753834235761,-527.53,0.00016604,2]
[376039418,1753834235771,-460.0,0.00016604,2]
[376039419,1753834235780,-1735.22,0.00016604,2]
[376039420,1753834235789,-400.0,0.00016604,2]
[376039421,1753834235798,-400.0,0.00016604,2]
[376039422,1753834235807,-573.77,0.00016604,2]
[376039423,1753834235817,-400.0,0.00016604,2]
[376039424,1753834235827,-430.3,0.00016604,2]
[376039425,1753834235836,-400.0,0.00016604,2]
[376039426,1753834235846,-400.0,0.00016604,2]
[376039427,1753834235855,-400.0,0.00016604,2]
[376039428,1753834235864,-460.0,0.00016604,2]
[376039429,1753834235874,-1533.79,0.00016604,2]
[376039430,1753834235883,-21048.19,0.00016604,2]
[376039431,1753834235893,-400.0,0.00016604,2]
[376039432,1753834235902,-561.05,0.00016604,2]
[376039433,1753834235912,-400.0,0.00016604,2]
[376039434,1753834235921,-1063.11,0.00016604,2]
[376039435,1753834235931,-933.67,0.00016604,2]
[376039436,1753834235941,-462.77,0.00016604,2]
[376039437,1753834235950,-941.08,0.00016604,2]
[376039438,1753834235960,-400.0,0.00016604,2]
[376039439,1753834235969,-400.0,0.00016604,2]
[376039440,1753834235980,-1968.51,0.00016604,2]
[376039441,1753834235989,-400.0,0.00016604,2]
[376039442,1753834235999,-400.0,0.00016604,2]
[376039443,1753834236008,-400.0,0.00016604,2]
[376039444,1753834236018,-500.0,0.00016604,2]
[376039445,1753834236027,-400.0,0.00016604,2]
[376039446,1753834236037,-400.0,0.00016604,2]
[376039447,1753834236046,-400.0,0.00016604,2]
[376039448,1753834236066,-400.0,0.00016604,2]
[376039449,1753834236076,-1068.18,0.00016604,2]
[376039450,1753834236086,-400.0,0.00016604,2]
[376039451,1753834236096,-400.0,0.00016604,2]
[376039452,1753834236106,-460.0,0.00016604,2]
[376039453,1753834236115,-660.14,0.00016604,2]
[376039454,1753834236125,-2082.54,0.00016604,2]
[376039455,1753834236135,-400.0,0.00016604,2]
[376039456,1753834236145,-400.0,0.00016604,2]
[376039457,1753834236155,-782.83,0.00016604,2]
[376039458,1753834236165,-400.0,0.00016604,2]
[376039459,1753834236175,-400.0,0.00016604,2]
[376039460,1753834236185,-400.0,0.00016604,2]
[376039461,1753834236195,-400.0,0.00016604,2]
[376039462,1753834236205,-400.0,0.00016604,2]
[376039463,1753834236218,-402.75,0.00016604,2]
[376039464,1753834236227,-400.0,0.00016604,2]
[376039465,1753834236237,-451.46,0.00016604,2]
[376039466,1753834236246,-642.38,0.00016604,2]
[376039467,1753834236467,-400.0,0.00016604,2]
[376039468,1753834236477,-1124.2,0.00016604,2]
[376039469,1753834236487,-400.0,0.00016604,2]
[376039470,1753834236497,-400.0,0.00016604,2]
[376039471,1753834236507,-548.92,0.00016604,2]
[376039472,1753834236516,-400.0,0.00016604,2]
[376039473,1753834236526,-2252.3,0.00016604,2]
[376039474,1753834236535,-400.0,0.00016604,2]
[376039475,1753834236545,-400.0,0.00016604,2]
[376039476,1753834236554,-400.0,0.00016604,2]
[376039477,1753834236564,-400.0,0.00016604,2]
[376039478,1753834236574,-1385.56,0.00016604,2]
[376039479,1753834236583,-490.65,0.00016604,2]
[376039480,1753834236594,-530.71,0.00016604,2]
[376039481,1753834236603,-450.27,0.00016604,2]
[376039482,1753834236613,-2161.59,0.00016604,2]
[376039483,1753834236622,-400.0,0.00016604,2]
[376039484,1753834236632,-400.0,0.00016604,2]
[376039485,1753834236641,-400.0,0.00016604,2]
[376039486,1753834236651,-400.0,0.00016604,2]
[376039487,1753834236660,-4993.58,0.00016604,2]
[376039488,1753834236670,-975.46,0.00016604,2]
[376039489,1753834236681,-400.0,0.00016604,2]
[376039490,1753834236690,-596.08,0.00016604,2]
[376039491,1753834236700,-400.0,0.00016604,2]
[376039492,1753834236710,-400.0,0.00016604,2]
[376039493,1753834236719,-400.0,0.00016604,2]
[376039494,1753834236729,-672.52,0.00016604,2]
[376039495,1753834236739,-400.0,0.00016604,2]
[376039496,1753834236750,-899.59,0.00016604,2]
[376039497,1753834236759,-2727.47,0.00016604,2]
[376039498,1753834236769,-400.0,0.00016604,2]
[376039499,1753834236779,-400.0,0.00016604,2]
[376039500,1753834236788,-400.0,0.00016604,2]
[376039501,1753834236798,-979.37,0.00016604,2]
[376039502,1753834236808,-400.0,0.00016604,2]
[376039503,1753834236818,-712.14,0.00016604,2]
[376039504,1753834236827,-1104.84,0.00016604,2]
[376039505,1753834236837,-400.0,0.00016604,2]
[376039506,1753834236848,-487.67,0.00016604,2]
[376039507,1753834236858,-400.0,0.00016604,2]
[376039508,1753834236868,-1034.98,0.00016604,2]
[376039509,1753834236878,-400.0,0.00016604,2]
[376039510,1753834236888,-400.0,0.00016604,2]
[376039511,1753834236898,-1245.33,0.00016604,2]
[376039512,1753834236908,-400.0,0.00016604,2]
[376039513,1753834236918,-400.0,0.00016604,2]
[376039514,1753834236929,-2136.33,0.00016604,2]
[376039515,1753834236938,-1512.78,0.00016604,2]
[376039516,1753834236948,-400.0,0.00016604,2]
[376039517,1753834236958,-523.74,0.00016604,2]
[376039518,1753834236967,-223.85,0.00016604,2]
[376039519,1753834236976,-400.0,0.00016604,2]
[376039520,1753834236986,-406.59,0.00016604,2]
[376039521,1753834236995,-1595.73,0.00016604,2]
[376039522,1753834237005,-772.04,0.00016604,2]
[376039523,1753834237015,-400.0,0.00016604,2]
[376039524,1753834237025,-636.59,0.00016604,2]
[376039525,1753834237034,-666.75,0.00016604,2]
[376039526,1753834237044,-400.0,0.00016604,2]
[376039527,1753834237053,-1221.71,0.00016604,2]
[376039528,1753834237063,-400.0,0.00016604,2]